Cogmind - Beta 15 @@@ ROGUE MODE // 2025.08.29 @ 05:11:16 Player: odium reigns Result: Destroyed by H-66 Slayer with Gauss Rifle Performance ------------- Evolutions (5) 2500 Regions Visited (6) 1200 Robots Destroyed (67) 335 Value Destroyed (1535) 1535 Prototype IDs (6) 120 Alien Tech Used (0) 0 Bonus (0) 0 TOTAL SCORE: 5690 Bonus ------- None Cogmind --------- Core Integrity 0/1000 Matter 100/300 Energy 65/100 System Corruption 7% Temperature Cool (1) Movement Flying (35) Location -5/Factory Parts ------- > --- POWER (3) -------- (None) > --- PROPULSION (5) --- Gyrokinetic Inverter Cooled Cesium-ion Thruster > --- UTILITY (7) ------ Advanced Terrain Scan Processor ECM Suite > --- WEAPON (2) ------- (None) > --- INVENTORY (5) ---- Light Nuclear Core Coil Gun Hypervelocity Gauss Rifle Hypervelocity Gauss Rifle Improved Remote Datajack Peak State ------------ > --- POWER ------------ Micro Nuclear Core Fission Core Micro Fission Core > --- PROPULSION ------- Gravmag Array Gravmag Array Gyrokinetic Inverter > --- UTILITY ---------- Medium Storage Unit Improved Sensor Array IFF Parser Advanced Terrain Scan Processor Advanced ECM Suite System Shield > --- WEAPON ----------- Tesla Rifle Coil Gun > --- INVENTORY -------- Light Armored Exoskeleton Improved Airjet Cooled Cesium-ion Thruster Advanced Sensor Array Improved Transmission Jammer Tesla Rifle Hypervelocity Gauss Rifle Hypervelocity Gauss Rifle Improved Remote Datajack [Rating: 77] Favorites ----------- Power Micro Nuclear Core Engine Light Ion Engine Power Core Micro Nuclear Core Propulsion Light Treads Treads Light Treads Leg Aluminum Leg Wheel Wheel Hover Unit Gravmag Array Flight Unit Cesium-ion Thruster Utility Large Storage Unit Device Improved Terrain Scanner Storage Large Storage Unit Processor Advanced Terrain Scan Processor Hackware System Shield Protection Medium Armor Plating Weapon Power Maul Energy Gun Pulse Rifle Ballistic Gun Assault Rifle Special Weapon Remote Datajack Impact Weapon Power Maul Special Melee Weapon Improved Datajack Build | -11 -10 -9 -8 -7 -6 -5 ------- Run | Yrd Mat Mat Mat Fac Fac Fac Slots Evolved 10 | . . 2 2 2 2 2 Power 2 | . . 1 1 . . . Propulsion 3 | . . . 1 1 1 . Utility 5 | . . 1 . 1 1 2 Weapon . | . . . . . . . Parts Attached 84 | 7 3 26 22 6 3 17 Power 13 | 1 . 5 5 . . 2 Engine 6 | 1 . 5 . . . . Core 7 | . . . 5 . . 2 Reactor . | . . . . . . . Propulsion 24 | 2 . 8 4 2 1 7 Treads 4 | . . 3 1 . . . Leg 6 | . . 5 . . . 1 Wheel 2 | 2 . . . . . . Hover 7 | . . . . 1 1 5 Flight 5 | . . . 3 1 . 1 Utility 25 | 2 2 5 7 2 1 6 Device 9 | 2 . . 3 . . 4 Storage 4 | . 2 1 . . . 1 Processor 5 | . . 1 2 2 . . Hackware 3 | . . 1 . . 1 1 Protection 4 | . . 2 2 . . . Artifact . | . . . . . . . Weapon 22 | 2 1 8 6 2 1 2 Energy Gun 9 | 1 . 6 . . . 2 Energy Cannon . | . . . . . . . Ballistic Gun 9 | 1 1 2 3 1 1 . Ballistic Cannon . | . . . . . . . Launcher . | . . . . . . . Special Weapon 1 | . . . . 1 . . Impact Weapon 2 | . . . 2 . . . Slashing Weapon . | . . . . . . . Piercing Weapon . | . . . . . . . Special Melee Weapon 1 | . . . 1 . . . Unidentified Prototypes 6 | . . 2 1 1 . 2 Parts Lost 22 | . . 1 3 1 . 17 Power 4 | . . 1 . . . 3 Propulsion 8 | . . . 2 1 . 5 Utility 8 | . . . 1 . . 7 Weapon 2 | . . . . . . 2 Highest Loss Streak 8 | . . 1 2 1 . 8 To Critical Strikes . | . . . . . . . Average Backups 9 | 2 9 14 14 4 4 6 Power 1 | . 1 2 1 . . . Propulsion 1 | 1 2 1 1 . . 2 Utility 3 | . 3 6 3 1 3 1 Weapon 2 | . 1 3 5 1 . 1 Tool/Special . | . . . . . . . Unused Backups 34 | . . 8 13 1 1 11 Power 3 | . . . 2 . . 1 Propulsion 3 | . . . 1 . 1 1 Utility 13 | . . 6 3 . . 4 Weapon 12 | . . 2 5 1 . 4 Tool/Special 3 | . . . 2 . . 1 Average Slot Usage (%) 87 | . 100 92 91 75 81 73 Engine 6 | . 14 19 . . . . Core 12 | . . . 25 14 13 12 Treads 7 | . . 7 21 . . . Leg 2 | . . 13 . . . . Wheel 5 | . 28 . . . . . Hover 4 | . . . . . 10 17 Flight 4 | . . . 1 24 20 . Device 10 | . 14 2 6 15 13 15 Storage 7 | . 13 11 8 . . 2 Processor 5 | . . 1 4 15 13 7 Hackware 2 | . . 8 . . 3 4 Protection 2 | . . 6 4 . . . Energy Gun 4 | . 3 13 5 . . 2 Ballistic Gun 7 | . 24 7 1 1 2 3 Impact Weapon 2 | . . . 10 . . . Peak Build Rating 77 | 11 11 21 41 45 54 77 Average Rating 32 | 4 9 18 33 35 47 62 On Entrance 23 | . 11 10 19 30 37 54 Naked Turns . | . . . . . . . Heaviest Build 59 | 9 27 48 59 21 22 47 Greatest Support 62 | 20 20 40 62 21 18 51 Greatest Overweight (x) 3 | . 1 3 1 1 1 3 Average Overweight (x) . | . . . . . . . Largest Inventory Capacity 15 | 5 15 15 15 5 5 10 Average Capacity 11 | 5 11 15 14 5 5 7 Most Carried 15 | 5 13 15 15 5 5 10 Average Carried 10 | 2 9 14 14 4 4 6 Final Capacity 15 | 5 15 15 5 5 5 5 Final Carried 14 | 4 13 14 5 5 4 5 Class Distribution -------------------- 72% | Mutant 18% | Scout 3% | Skirmisher Dominant Class ---------------- Mutant | -10/Materials Mutant | -9/Materials Mutant | -8/Materials Scout | -7/Factory Scout | -6/Factory Mutant | -5/Factory Resources | -11 -10 -9 -8 -7 -6 -5 ----------- Run | Yrd Mat Mat Mat Fac Fac Fac Matter Collected 1478 | 388 243 222 294 18 161 152 Remotely . | . . . . . . . Salvage Created 1953 | 118 493 547 483 60 140 112 Parts 128 | 13 32 32 26 8 9 8 Haulers Intercepted 3 | . 1 2 . . . . Recyclers Shooed 2 | . . . . . 1 1 Parts Field Recycled . | . . . . . . . Retrieved Matter . | . . . . . . . Parts Self-Destructed . | . . . . . . . Prevented . | . . . . . . . Kills | -11 -10 -9 -8 -7 -6 -5 ------- Run | Yrd Mat Mat Mat Fac Fac Fac Combat Hostiles Destroyed 47 | 1 10 13 18 1 . 4 Melee 9 | . . . 9 . . . Guns 32 | 1 10 13 3 1 . 4 AOE 1 | . . . 1 . . . Classes Destroyed 9 | 3 4 1 . 1 . . Worker 9 | 1 1 1 . . 6 . Tunneler 2 | 2 . . . . . . Hauler 3 | . 1 2 . . . . Operator 2 | . 1 . . 1 . . Watcher 4 | . 2 1 1 . . . Swarmer 21 | . 3 3 11 . . 4 Grunt 20 | 1 7 9 3 . . . Sentry 5 | . . 1 4 . . . Programmer 1 | . . . . 1 . . Best Kill Streak 5 | 4 3 5 5 1 5 4 Combat Bots Only 5 | 1 3 5 5 1 . 4 Max Kills in Single Turn 2 | 1 2 1 1 1 1 1 Gunslinging . | . . . . . . . Exploded 1 | . . . 1 . . . Melee 1 | . . . 1 . . . Uniques/NPCs Destroyed . | . . . . . . . Combat | -11 -10 -9 -8 -7 -6 -5 -------- Run | Yrd Mat Mat Mat Fac Fac Fac Hostile Shots Fired 497 | 1 33 54 141 14 . 254 Missed 144 | . 9 16 40 8 . 71 Hits 353 | 1 24 38 101 6 . 183 Projectile 353 | 1 24 38 101 6 . 183 AOE 1 | . . . . . . 1 Critical Strikes 11 | . 1 . 1 1 . 8 Part Disruptions 1 | . . 1 . . . . Damage Taken 5314 | 10 294 465 1002 235 . 3308 Core 1320 | . 71 37 128 76 . 1008 Absorbed by Shields 126 | . . . 126 . . . Core Remaining (%) 87 | 100 71 90 76 89 100 . Volleys Fired 158 | 7 37 51 9 15 18 21 Largest 2 | 2 2 2 2 1 1 2 Hottest 130 | 60 60 126 90 28 30 130 Shots Fired 245 | 14 74 80 18 15 18 26 Gun 233 | 14 74 80 18 10 13 24 Cannon . | . . . . . . . Launcher . | . . . . . . . Special 12 | . . . . 5 5 2 Kinetic 128 | 7 64 17 6 10 13 11 Thermal 63 | . . 63 . . . . Explosive . | . . . . . . . Electromagnetic 42 | 7 10 . 12 . . 13 Robot Hit Streak 8 | 7 5 7 7 3 6 8 Robot Miss Streak 5 | 1 3 5 3 4 1 3 Penetration Max . | . . . . . . . Secondary Targets 3 | . . 1 . . . 2 Max Gunslinging Chain 1 | . . 1 . . . 1 Shots Hit Robots 179 | 9 44 48 43 7 11 17 Core Hits 78 | 4 24 20 13 3 8 6 Critical Kills 3 | . 1 . 2 . . . Critical Parts Destroyed 5 | . . . 5 . . . Critical Strikes 14 | 1 1 4 7 . . 1 Burn 4 | . . 4 . . . . Destroy 1 | . 1 . . . . . Corrupt 2 | 1 . . . . . 1 Smash 7 | . . . 7 . . . Melee Attacks 47 | . . . 47 . . . Impact 47 | . . . 47 . . . Slashing . | . . . . . . . Piercing . | . . . . . . . Sneak Attacks 1 | . . . 1 . . . Combat Hostiles . | . . . . . . . Follow-up Attacks 7 | . . . 7 . . . Damage Inflicted 3760 | 117 553 817 1623 91 151 408 Guns 2265 | 117 521 812 204 91 151 369 Cannons . | . . . . . . . Explosions 148 | . 32 . 116 . . . Melee 1303 | . . . 1303 . . . Ramming 44 | . . 5 . . . 39 Kinetic 1175 | 59 438 161 59 91 151 216 Thermal 799 | . 32 651 116 . . . Explosive . | . . . . . . . Electromagnetic 439 | 58 83 . 145 . . 153 Impact 1303 | . . . 1303 . . . Slashing . | . . . . . . . Piercing . | . . . . . . . Highest Corruption 9 | . . 9 . 3 . 7 Average Corruption 6 | . . 8 . 2 . 2 Corruption Purged . | . . . . . . . Corruption Blocked . | . . . . . . . Effects 21 | . . 17 . 2 . 2 Message Errors 8 | . . 5 . 1 . 2 Matter Fused 6 | . . 5 . 1 . . Heat Flow Errors 2 | . . 2 . . . . Energy Discharges 1 | . . 1 . . . . Parts Rejected 1 | . . 1 . . . . Data Loss (major) 1 | . . 1 . . . . Misfires 1 | . . 1 . . . . Weapon Failures 1 | . . 1 . . . . Overload Shots . | . . . . . . . Overflow Damage 333 | . . . 333 . . . Projectiles . | . . . . . . . Explosions . | . . . . . . . Melee 333 | . . . 333 . . . Knockbacks 2 | . . . 2 . . . Impact 2 | . . . 2 . . . Kinetic . | . . . . . . . Secondary . | . . . . . . . Self-Inflicted Damage 19 | . . . . . . 19 Shots . | . . . . . . . Rammed 1 | . . . . . . 1 Targets Rammed 3 | . . 1 . . . 2 Kicked 2 | . . 1 . . . 1 Crushed . | . . . . . . . Highest Temperature 485 | 20 18 485 180 8 . 477 Average Temperature 133 | 13 8 165 61 2 . 307 Received Heat Transfer 620 | 6 159 150 239 . . 66 Effects 22 | . . 12 . . . 10 Shutdowns 9 | . . 4 . . . 5 Energy Bleed 3 | . . 1 . . . 2 Interference 5 | . . 4 . . . 1 Matter Decay 1 | . . . . . . 1 Short Circuit 2 | . . 1 . . . 1 Damage (minor) 2 | . . 2 . . . . Siege Activations . | . . . . . . . Martial Activations . | . . . . . . . Shielding Activations . | . . . . . . . Robots Disrupted . | . . . . . . . Combat Hostiles . | . . . . . . . Robots Corrupted 5 | . . . 5 . . . Combat Hostiles 5 | . . . 5 . . . Parts Fried 7 | . . . 7 . . . Impact Corruptions 13 | . . . 13 . . . Robots Melted . | . . . . . . . Combat Hostiles . | . . . . . . . Parts Melted 2 | . . 2 . . . . Heat Transferred 1852 | . 50 1702 100 . . . Parts Sabotaged . | . . . . . . . Parts Stolen . | . . . . . . . Parts Stripped . | . . . . . . . Power Chain Reactions 3 | . 1 . 2 . . . Alert | -11 -10 -9 -8 -7 -6 -5 ------- Run | Yrd Mat Mat Mat Fac Fac Fac Maximum Alert Level 1 | . . 1 . . . . Low Security (%) 99 | 100 100 94 100 100 100 100 Level 1 . | . . 5 . . . . Level 2 . | . . . . . . . Level 3 . | . . . . . . . Level 4 . | . . . . . . . Level 5 . | . . . . . . . High Security . | . . . . . . . Max Security . | . . . . . . . Peak Influence 209 | 25 122 209 189 82 36 112 Initial 77 | . 6 40 49 77 4 9 Average 54 | 6 35 119 68 57 6 15 Influence Increases 1743 | 35 337 389 522 92 77 291 Destroy 0b10 Robot/C 940 | 20 200 260 360 20 . 80 Destroy 0b10 Robot/NC 100 | 15 25 20 5 5 30 . Destroy Leader 194 | . 46 46 82 10 . 10 Successful Hack 53 | . 15 . 5 27 . 6 Disable Machine 120 | . . 15 30 15 45 15 Destroy Structure 21 | . 6 3 10 . 2 . Partial Spotted 30 | . . . . 15 . 15 Lose Combat Pursuer 285 | . 45 45 30 . . 165 Influence Decreases 1743 | 25 249 370 469 253 65 312 Entered New Map 240 | . 4 58 68 93 5 12 Time Decay 1301 | 25 245 302 329 150 60 190 Lost Part 160 | . . 10 30 10 . 110 Purge Threat 42 | . . . 42 . . . Squads Dispatched 10 | . 1 1 2 . 1 5 Investigation 4 | . 1 . 2 . . 1 Extermination 2 | . . . . . 1 1 Reinforcement 3 | . . 1 . . . 2 Assault . | . . . . . . . Garrison 1 | . . . . . . 1 Intercept . | . . . . . . . Searches Triggered . | . . . . . . . Construction Impeded . | . . . . . . . Haulers Reinforced 1 | . . . . . . 1 Active Scanning Responses . | . . . . . . . Cargo Convoy Interrupts . | . . . . . . . Stealth | -11 -10 -9 -8 -7 -6 -5 --------- Run | Yrd Mat Mat Mat Fac Fac Fac Distress Signals 7 | . . 4 2 1 . . Communications Jammed . | . . . . . . . Distress Signals . | . . . . . . . Times Spotted 98 | 1 15 17 26 6 . 33 Peak Tracking Total 7 | 1 4 4 6 3 . 7 Tactical Retreats 13 | . 2 2 2 . . 7 Traps | -11 -10 -9 -8 -7 -6 -5 ------- Run | Yrd Mat Mat Mat Fac Fac Fac Traps Triggered 12 | . 1 6 1 4 . . Indirectly . | . . . . . . . Trap Hack Attempts . | . . . . . . . Triggered . | . . . . . . . Disarmed . | . . . . . . . Reprogrammed . | . . . . . . . Reused . | . . . . . . . Traps Extracted . | . . . . . . . Installed . | . . . . . . . Triggered . | . . . . . . . Machines | -11 -10 -9 -8 -7 -6 -5 ---------- Run | Yrd Mat Mat Mat Fac Fac Fac Machines Disabled 8 | . . 1 2 1 3 1 Max in Single Turn 2 | . . 1 1 1 2 1 Machines Repaired . | . . . . . . . Machines Dismantled . | . . . . . . . Machines Sabotaged . | . . . . . . . Overloaded Fab Kills . | . . . . . . . Hacking | -11 -10 -9 -8 -7 -6 -5 --------- Run | Yrd Mat Mat Mat Fac Fac Fac Machines Accessed 26 | . 6 1 7 6 3 3 Terminals 21 | . 5 1 6 5 3 1 Fabricators 1 | . . . . 1 . . Repair Stations . | . . . . . . . Recycling Units 4 | . 1 . 1 . . 2 Scanalyzers . | . . . . . . . Garrison Access . | . . . . . . . Total Hacks 67 | . 23 2 13 11 6 12 Successful 47 | . 15 1 11 9 2 9 Failed 20 | . 8 1 2 2 4 3 Catastrophic 4 | . 1 . 1 . 2 . Database Lockouts . | . . . . . . . Manual . | . . . . . . . Terminals 52 | . 20 2 12 10 6 2 Fabricators 1 | . . . . 1 . . Repair Stations . | . . . . . . . Recycling Units 14 | . 3 . 1 . . 10 Scanalyzers . | . . . . . . . Garrison Access . | . . . . . . . Terminal Hacks 35 | . 12 1 10 9 2 1 Record 18 | . 6 . 5 5 2 . Part Schematic 1 | . . . . 1 . . Open DSF 2 | . . . . 1 . 1 Emergency Access Points 3 | . . 1 1 1 . . Alert Level 3 | . . . 2 1 . . Unreport Threat 1 | . . . 1 . . . Locate Traps 1 | . 1 . . . . . Dispatch Records 1 | . 1 . . . . . Transport Status 2 | . 2 . . . . . Reinforcement Status 1 | . . . 1 . . . Hauler Manifests 1 | . 1 . . . . . Zone Layout 1 | . 1 . . . . . Fabricator Hacks . | . . . . . . . Repair Station Hacks . | . . . . . . . Recycling Unit Hacks 12 | . 3 . 1 . . 8 Recycle Component 3 | . . . . . . 3 Process 5 | . 1 . . . . 4 Report Inventory 4 | . 2 . 1 . . 1 Scanalyzer . | . . . . . . . Garrison Access Hacks . | . . . . . . . Unauthorized Hacks . | . . . . . . . Terminals . | . . . . . . . Fabricators . | . . . . . . . Repair Stations . | . . . . . . . Recycling Units . | . . . . . . . Scanalyzers . | . . . . . . . Garrison Access . | . . . . . . . Data Cores Recovered 2 | . 1 . . 1 . . Used . | . . . . . . . Hacking Detections 19 | . 5 1 4 4 3 2 Full Trace Events 4 | . 2 . 1 . . 1 Feedback Events . | . . . . . . . Feedback Blocked . | . . . . . . . Robot Schematics Acquired . | . . . . . . . Robots Built . | . . . . . . . Authchips . | . . . . . . . Time . | . . . . . . . Total Robot Build Rating . | . . . . . . . Part Schematics Acquired 1 | . . . . 1 . . Parts Built . | . . . . . . . Authchips . | . . . . . . . Time . | . . . . . . . Total Part Build Rating . | . . . . . . . Parts Repaired . | . . . . . . . Time . | . . . . . . . Parts Recycled 3 | . . . . . . 3 Recycled Matter 427 | . 290 . . . . 137 Retrieved Matter . | . . . . . . . Retrieved Components . | . . . . . . . Parts Scanalyzed . | . . . . . . . Part Schematics Acquired . | . . . . . . . Parts Damaged . | . . . . . . . Bothacking | -11 -10 -9 -8 -7 -6 -5 ------------ Run | Yrd Mat Mat Mat Fac Fac Fac Used RIF Installer . | . . . . . . . Robots Hacked 4 | . . . . 1 2 1 Non-combat 4 | . . . . 1 2 1 Combat . | . . . . . . . Robot Hacks Applied 7 | . . . . 3 3 1 parse_system 2 | . . . . 1 1 . no_distress 3 | . . . . 1 1 1 find_chute 1 | . . . . . 1 . find_recycling 1 | . . . . 1 . . Relay Couplers Released . | . . . . . . . Fabnet Peak Effective % . | . . . . . . . Robots Rewired . | . . . . . . . Allies Hacked . | . . . . . . . Hacks Repelled . | . . . . . . . Allies | -11 -10 -9 -8 -7 -6 -5 -------- Run | Yrd Mat Mat Mat Fac Fac Fac Total Allies . | . . . . . . . Largest Group . | . . . . . . . Highest-Rated Group . | . . . . . . . Highest-Rated Ally . | . . . . . . . Total Orders . | . . . . . . . Ally Attacks . | . . . . . . . Total Damage . | . . . . . . . Kills . | . . . . . . . Allies Corrupted . | . . . . . . . Allies Melted . | . . . . . . . Intel | -11 -10 -9 -8 -7 -6 -5 ------- Run | Yrd Mat Mat Mat Fac Fac Fac Active Infowar (turns) 2114 | 21 675 85 61 304 300 668 Sensors 1210 | . . . 8 301 300 601 IFF 552 | . . . . . . 552 Terrain 1739 | 21 675 85 61 304 300 293 ECM 104 | . . . . . . 104 Robot Analysis Total . | . . . . . . . Derelict Logs Recovered . | . . . . . . . Drone Launches . | . . . . . . . Drone Recoveries . | . . . . . . . Exploration | -11 -10 -9 -8 -7 -6 -5 ------------- Run | Yrd Mat Mat Mat Fac Fac Fac Turns Passed 3906 | 105 675 669 1124 304 300 729 Spaces Moved 3882 | 91 650 228 614 728 505 1066 Core 39 | 24 . . . . . 15 Treads 576 | . . 112 464 . . . Legs 127 | . . 110 . . . 17 Wheels 723 | 67 650 6 . . . . Hover 1303 | . . . . . 274 1029 Flight 1114 | . . . 150 728 231 5 Fastest Speed 27 | 50 80 95 29 27 30 35 Average Speed 77 | 72 84 194 144 29 50 57 Slowest Speed 330 | 80 95 330 240 110 106 200 Overloaded Moves . | . . . . . . . Propulsion Burnouts . | . . . . . . . Robots Hopped 6 | . . . 1 4 . 1 Potential Cave-ins . | . . . . . . . Cave-ins Triggered . | . . . . . . . Exploration Rate (%) 28 | 9 77 20 41 23 9 20 Regions Visited 6 Branch Regions . Pre-discovered Areas . | . . . . . . . Known Exits Taken 3 | . . . 1 1 1 . Unknown Exits Taken 3 | 1 1 1 . . . . Scrap Searched . | . . . . . . . Spaces Dug . | . . . . . . . Terrain Destroyed 13 | . 5 . 8 . . . Melee . | . . . . . . . Projectile . | . . . . . . . AOE 13 | . 5 . 8 . . . Terrain Rammed . | . . . . . . . Walls Destroyed . | . . . . . . . Machines Disabled . | . . . . . . . Actions | -11 -10 -9 -8 -7 -6 -5 --------- Run | Yrd Mat Mat Mat Fac Fac Fac Total 4459 | 116 705 377 762 803 534 1162 Wait 57 | 1 5 14 11 3 2 21 Move 3865 | 90 649 227 611 720 504 1064 Hop 5 | . . . 1 3 . 1 Pick Up 109 | 11 10 27 29 8 3 21 Fast Attach 13 | . . 5 3 1 1 3 Attach 45 | 7 . 4 9 8 4 13 Detach 11 | . . 1 3 4 1 2 Swap 38 | . 3 19 11 2 . 3 Drop 80 | . 1 28 36 3 1 11 Fire 158 | 7 37 51 9 15 18 21 Melee 39 | . . . 39 . . . Ram 1 | . . . . . . 1 Kick 2 | . . 1 . . . 1 Crush . | . . . . . . . Escape Stasis 36 | . . . . 36 . . Rewire . | . . . . . . . Trap . | . . . . . . . Miscellaneous . | . . . . . . . Route ------- -11/Scrapyard -10/Materials (discovered 4 exits: *Mat x2 / [*Min x2]) -9/Materials -8/Materials -7/Factory -6/Factory -5/Factory History --------- Turn | Location | Event 2 | -11/Scrapyard | Met Revision 17 64 | -11/Scrapyard | Discovered new exit (range 8) 106 | -11/Scrapyard | Entered Materials 231 | -10/Materials | Discovered new exit (range 15) 301 | -10/Materials | Build established: Mutant 356 | -10/Materials | Discovered new exit (range 16) 697 | -10/Materials | Discovered new exit (range 15) 750 | -10/Materials | Discovered new exit (range 14) 781 | -10/Materials | Entered another Materials area 781 | -9/Materials | Evolved 2 slots: Power x1, Utility x1 1288 | -9/Materials | Discovered new exit (range 11) 1450 | -9/Materials | Entered another Materials area 1450 | -8/Materials | Evolved 2 slots: Power x1, Propulsion x1 2571 | -8/Materials | Discovered new exit (range 11) 2574 | -8/Materials | Identified exit to Factory 2574 | -8/Materials | Entered Factory 2574 | -7/Factory | Evolved 2 slots: Propulsion x1, Utility x1 2872 | -7/Factory | Discovered new exit (range 9) 2874 | -7/Factory | Identified exit to Factory 2878 | -7/Factory | Entered another Factory area 2878 | -6/Factory | Evolved 2 slots: Propulsion x1, Utility x1 2882 | -6/Factory | Build established: Scout 3020 | -6/Factory | Discovered new exit (range 14) 3162 | -6/Factory | Identified exit to Factory 3178 | -6/Factory | Entered another Factory area 3178 | -5/Factory | Evolved 2 slots: Utility x2 3247 | -5/Factory | Garrison activated, responded to threat 3773 | -5/Factory | Build established: Mutant 3810 | -5/Factory | Lost 8 parts (1p1n5u1w) 3882 | -5/Factory | Lost 4 parts (2p1n1w) 3886 | -5/Factory | Core integrity fell below 50% 3900 | -5/Factory | Core integrity fell below 20% 3907 | -5/Factory | Destroyed by H-66 Slayer with Gauss Rifle Last Messages --------------- Slug penetrates Wall. Penetrated by Slug. Slug penetrates Wall. Penetrated by Slug. Slug penetrates P-70 Sage. Penetrated by Slug. Lgt. Armored Exoskeleton destroyed. Gravmag Array destroyed. Penetrated by Slug. P-70 Sage destroyed. Penetrated by Slug. Slug penetrates Wall. Identified Imp. Airjet. Penetrated by Slug. Identified Cld. Cesium-ion Thruster. Imp. Airjet destroyed. Penetrated by Slug. Dropped Med. Storage Unit. Penetrated by Slug. [Achievement: 5k Club] Map ----- +----------------------------------------------------+ | ?????????????????????????????# # #?????? | | ?????????????????????????????# # ! #?????? | | ?????????????????????????????# # !! #?????? | | ????????????????????########## ###########?????? | | ????????????????????# # #???????????????? | | ????????????????????#! """ # #???????????????? | | ????????????????????# """ + #???????????????? | | ????????????????????# """ # #???????????????? | | ????????????????????# + #???????????????? | | ????????????????????# """ # #???????????????? | | ????????????????????# """ # #???????????????? | | ????????????????????# """ / #???????????????? | | ????????????????????# # #???????????????? | | ????????????????????########## ##??????????????? | | ????????????????+ T +??????????????? | | ?????????????????????######## #####??????????????? | | ????????????????????????????# #??????????????????? | | ????????????????????????????# #??????????????????? | | ????????????????????????????# #??????????????????? | | ????????????????????????????# #??????????????????? | | ????????????????????????????# #??????????????????? | | ????????????????????????????# #??????????????????? | | ????????????????????????????# #??????????????????? | | ???????????????????########## ###????????????????? | | ???????????????????#!! h # #????????????????? | | ???????????????????#%= h @# ###??????????????? | | ???????????????????#!h""" +^ +???????????? | | ???????????????????#[!""" # ######???????????? | | ???????????????????# h""" # #????????????????? | | ???????????????????#[ ## ##????????????????? | | ???????????????????######### #?????????????????? | | ???????????????????????????# #?????????????????? | | ???????????????????????????# #?????????????????? | | ???????????????????????????# #?????????????????? | | ???????????????????????????# #?????????????????? | | ???????????????????????????# #?????????????????? | | ???????????????????????????? #?????????????????? | | ???????????????H???????????? #?????????????????? | | ???????????????????????????? #?????????????????? | | ????????????????????????????# ##?????????????????? | | ????????????????????????????? ???????????????????? | | ?????????????????????????????????????????????????? | | ?????????????????????????????????????????????????? | | ?????????????????????????????????????????????????? | | ?????????????????????????????????????????????????? | | ?????????????????????????????????????????????????? | | ?????????????????????????????????????????????????? | | ?????????????????????????????????????????????????? | | ?????????????????????????????????????????????????? | | ?????????????????????????????????????????????????? | +----------------------------------------------------+ Best States ------------- Heat Dissipation 40 Energy Generation 38 Energy Capacity 430 Matter Stores 300 Matter Capacity 300 Sight Range 16 Robot Scan Range 16 Terrain Scan Range 16 Terrain Scan Density 210 ECM Strength 2 Armor Coverage 600 Evasion (%) 64 Targeting Accuracy 5 Recoil Reduction 3 Offensive Hacking 10 Defensive Hacking 20 Item Schematics ----------------- Imp. VSS Leg | -7/Factory | Hacked Robot Schematics ------------------ None Fabricated ------------ Nothing Repaired ---------- Nothing Alien Tech Used ----------------- None Achievements -------------- 5k Club Everything Is Under Control I Spy Made in Tau Ceti IV Omniscient Cartographer Oops Serviceable Loadout Challenges ------------ None Game ------ Seed FortressTrapChainsaw Manual? 0 Play Time 02:23:49 Cumulative 4.6 hours Start 2025.08.29 @ 00:14:25 End 2025.08.29 @ 05:11:16 Sessions 1 Manual Loads 0 Difficulty Rogue Special Mode None Game No. 2 Rogue 2 Adventurer 0 Explorer 0 Win Type - Total 0 Types 0/0/0/0/0/0/0/0/0/0 Lore% 1 Gallery% 7 Achievement% 9 Wizard Run 0 Options --------- Layout 1 ASCII 0 Keyboard 0 Movement Arrows Keybinds 0 Fullscreen 1 Font 16/SmallcapsGlow Map View 25x20 Zoom Use 94% Tactical HUD 0 Map Filters NONE Filters NONE Steam SD RUN: bf9bb295-ca22-4644-adf0-d8499bdf24f1